bitfinex-derivatives/quotes_ETHF0:USTF0_20250422
["timestamp","ask_amount","ask_price","bid_price","bid_amount"]
[1745359871095,3.2078,1747.9,1747.2,5.4683]
[1745359871301,3.2078,1747.7,1747.2,5.4683]
[1745359871485,14.5067,1747.6,1747.2,5.4683]
[1745359871692,14.5067,1747.6,1747.5,1.15269314]
[1745359871892,3.2078,1747.9,1747.8,1.14392]
[1745359872191,17.81509538,1747.9,1747.5,0.00857314]
[1745359872393,0.10059538,1747.8,1747.6,1.14401]
[1745359872593,5.7562,1747.7,1747.6,1.14401]
[1745359872789,10.108,1747.7,1747.5,0.00857314]
[1745359872994,70.74160515,1747.6,1746.7,10.55045898]
[1745359873195,3.2078,1747.1,1746.7,7.34265898]
[1745359873395,14.76180515,1747.0,1746.9,1.14451]
[1745359873594,14.76180515,1747.0,1746.5,5.6207]
[1745359873795,3.2078,1746.7,1745.8,6.07081]
[1745359873995,76.49780515,1746.6,1746.5,1.14478]
[1745359874205,0.00857314,1746.4,1746.3,1.14491]
[1745359874495,3.2078,1747.0,1746.5,1.14478]
[1745359874695,5.7562,1747.4,1747.3,1.14425]
[1745359874897,14.76386084,1747.4,1746.7,3.2078]
[1745359875097,0.10066084,1747.3,1746.8,5.6207]
[1745359875297,5.7562,1747.2,1747.0,1.14441]
[1745359875604,5.7562,1747.2,1747.1,1.14438]
[1745359875904,5.85684243,1747.2,1746.9,0.00857314]
[1745359876095,5.7562,1747.2,1746.9,6.33057314]
[1745359876295,0.10064178,1747.1,1746.9,6.33057314]
[1745359876505,5.75134711,1747.0,1746.9,6.33057314]
[1745359877097,5.6507,1747.0,1746.9,6.33057314]
[1745359877499,14.5587,1747.0,1746.9,6.33057314]
[1745359877803,14.65934719,1747.0,1746.9,6.33057314]
[1745359878300,8.908,1747.0,1746.9,7.47508314]
[1745359878602,8.908,1747.0,1746.9,6.33057314]
[1745359878804,14.87905601,1747.0,1746.9,6.33057314]
[1745359879103,14.87905601,1747.0,1746.9,0.00857314]
[1745359879402,1.14455,1746.9,1746.3,7.46689]
[1745359879602,1.14468,1746.7,1746.3,6.322]
[1745359879898,9.17888123,1746.6,1746.3,7.4669]
[1745359880101,9.17888123,1746.6,1746.3,6.322]
[1745359880401,0.10067749,1746.5,1746.3,7.46689]
[1745359880700,3.14e-06,1746.6,1746.5,1.14478]
[1745359881005,3.14e-06,1746.6,1746.5,12.05018]
[1745359881199,3.14e-06,1746.6,1746.5,17.05018]
[1745359882206,3.14e-06,1746.6,1746.5,23.37218]
[1745359882897,3.14e-06,1746.6,1746.5,13.13848]
[1745359883606,3.14e-06,1746.6,1746.5,18.13848]
[1745359885308,3.14e-06,1746.6,1746.5,13.13848]
[1745359887509,3.14e-06,1746.6,1746.5,18.13848]
[1745359888701,8.909,1747.6,1747.5,1.14412]
[1745359889201,5.5746,1747.7,1747.6,1.14406]
[1745359889404,83.89258,1748.1,1747.9,1.14384]
[1745359889606,6.81901667,1748.0,1747.8,1.14388]
[1745359889806,5.5746,1748.0,1747.8,0.00857314]
[1745359890103,10.5746,1748.0,1747.8,6.33057314]
[1745359890303,10.5746,1748.0,1747.8,7.47449314]
[1745359890610,0.10059377,1747.9,1747.8,7.47449314]
[1745359890806,10.64119377,1747.9,1747.8,7.47449314]
[1745359891003,5.5406,1747.9,1747.8,7.47449314]
[1745359891205,82.7488,1748.1,1748.0,1.14379]
[1745359891206,73.8798,1748.1,1748.0,1.14379]
[1745359891401,8.869,1749.0,1748.2,1.14366]
[1745359891606,5.64115354,1748.9,1748.8,1.14327]
[1745359892002,3.54e-06,1748.9,1748.8,1.14327]
[1745359892213,8.869,1749.0,1748.9,1.14321]
[1745359892411,18.9169562,1749.3,1749.2,1.14301]
[1745359892910,16.9170362,1749.3,1749.2,9.35081]
[1745359893108,107.3934374,1750.4,1749.2,9.35081]
[1745359893109,8.868,1750.3,1750.2,1.14236]
[1745359893414,39.9412374,1750.4,1749.9,2.85639]
[1745359893415,35.5852374,1750.4,1750.3,1.14229]
[1745359893601,28.7314874,1750.4,1750.3,1.14229]
[1745359893806,24.9421074,1750.4,1750.3,6.14229]
[1745359894113,20.2377574,1750.4,1750.3,17.76389]
[1745359894308,8.2078,1750.4,1750.3,6.322]
[1745359894504,5.0,1750.4,1750.3,6.322]
[1745359894709,13.868,1750.4,1750.3,7.46429]
[1745359894903,13.868,1750.4,1750.3,6.322]
[1745359895213,17.17624963,1750.4,1750.1,1.15098314]
[1745359895515,5.58865791,1750.3,1750.1,1.15098314]
[1745359895716,5.4882,1750.3,1750.1,0.00857314]
[1745359896015,5.4882,1750.3,1749.5,3.2078]
[1745359896016,3.30826322,1750.2,1749.9,1.14253]
[1745359896202,5.58866322,1750.1,1750.0,1.14249]
[1745359896402,5.4882,1750.1,1750.0,1.14249]
[1745359896621,10.4882,1750.1,1749.9,1.14252]
[1745359896807,5.4882,1750.1,1750.0,1.14249]
[1745359897203,3.14e-06,1750.2,1750.1,1.14242]
[1745359898207,5.00000314,1750.2,1750.0,1.14244]
[1745359898408,8.7186,1750.1,1749.8,0.00857314]
[1745359898606,5.5108,1750.1,1749.9,1.14253]
[1745359898816,0.1003964,1750.0,1749.9,1.14253]
[1745359899017,10.5108,1750.1,1750.0,1.14249]
[1745359899213,10.5108,1750.1,1749.8,0.00857314]
[1745359899214,5.60972016,1750.1,1749.8,0.00857314]
[1745359899518,0.09892073,1750.0,1749.8,0.00857314]
[1745359899816,8.7374,1749.9,1749.8,0.00857314]
[1745359900013,8.83632073,1749.9,1749.8,0.00857314]
[1745359900218,13.83632073,1749.9,1749.8,1.15119314]
[1745359900417,13.83632073,1749.9,1749.8,0.00857314]
[1745359900620,14.97891073,1749.9,1749.3,1.1429]
[1745359900920,12.16672073,1749.8,1749.0,2.85786]
[1745359901123,12.16672073,1749.8,1748.4,4.9066]
[1745359901124,0.09892073,1749.7,1749.6,1.14275]
[1745359901412,5.5296,1750.0,1749.9,1.14255]
[1745359901616,3.2078,1750.1,1749.9,1.14255]
[1745359901617,8.859,1750.2,1750.1,1.14242]
[1745359901817,8.859,1750.2,1749.8,0.00857314]
[1745359902013,3.2078,1750.0,1749.8,0.00857314]
[1745359902212,6.77034518,1749.9,1749.2,1.14297]
[1745359902521,3.2078,1749.5,1748.9,3.2078]
[1745359902711,5.3236,1749.4,1749.0,5.2242]
[1745359902908,5.3236,1749.4,1749.2,1.14298]
[1745359903114,5.3236,1749.4,1749.0,5.2242]
[1745359903318,5.3236,1749.4,1749.2,1.143]
[1745359903620,5.33217314,1749.4,1749.0,5.23277314]
[1745359903809,5.33217314,1749.4,1749.2,1.14296]
[1745359904015,5.33217314,1749.4,1749.3,1.14294]
[1745359904221,5.33217314,1749.4,1749.0,5.23277314]
[1745359904521,5.33217314,1749.4,1749.3,1.14294]
[1745359904724,0.00857314,1749.4,1749.3,1.14294]
[1745359904917,3.2078,1750.3,1749.3,10.2242]
[1745359905129,5.3236,1750.2,1749.9,1.14249]
[1745359905422,5.3236,1750.2,1750.0,1.14244]
[1745359905621,5.3236,1750.2,1750.1,1.14242]
[1745359905821,5.3236,1750.2,1750.0,1.14247]
[1745359906028,5.3236,1750.2,1750.0,1.15104314]
[1745359906322,3.2078,1750.1,1749.5,1.14276]
[1745359906518,3.2078,1749.7,1749.3,3.2078]
[1745359906721,5.3173,1749.6,1749.4,1.14286]
[1745359907022,3.30598642,1749.5,1748.2,13.0823]
[1745359907218,5.3173,1749.4,1748.9,2.85786]
[1745359907419,5.3173,1749.4,1749.3,1.14294]
[1745359908323,5.3173,1749.4,1749.3,7.46494]
[1745359908525,10.3173,1749.4,1749.3,6.322]
[1745359908720,1.14301,1749.2,1749.0,0.00857314]
[1745359908924,8.3036,1749.1,1749.0,0.00857314]
[1745359909128,9.44667,1749.1,1749.0,0.00857314]
[1745359909421,8.3036,1749.1,1749.0,1.14314]
[1745359909625,8.858,1749.4,1749.0,1.14314]
[1745359909626,8.858,1749.4,1749.3,1.14294]
[1745359909827,13.9538,1749.4,1749.3,1.14294]
[1745359910215,0.00857314,1749.5,1749.4,1.14288]
[1745359910417,3.14e-06,1749.5,1749.4,1.14288]
[1745359910626,3.14e-06,1749.5,1749.4,6.46768]
[1745359910827,3.14e-06,1749.5,1749.4,11.46768]
[1745359911225,3.14e-06,1749.5,1749.4,17.78968]
[1745359912928,3.14e-06,1749.5,1749.4,12.78968]
[1745359913427,5.381,1750.0,1749.8,1.1426]
[1745359913629,5.381,1750.0,1749.8,1.14262]
[1745359913827,5.381,1750.0,1749.9,1.14255]
[1745359914325,5.381,1750.0,1749.7,5.4691]
[1745359914624,5.38957314,1750.0,1749.9,1.14255]
[1745359915029,10.38957314,1750.0,1749.9,1.14255]
[1745359916027,0.00857314,1750.0,1749.9,1.14255]
[1745359916520,3.14e-06,1750.0,1749.9,1.14255]
[1745359916725,3.14e-06,1750.0,1749.9,9.35035]
[1745359917118,3.2078,1750.7,1750.5,1.14216]
[1745359917318,3.2078,1750.7,1750.6,1.14209]
[1745359917527,8.8465,1750.7,1750.6,1.14209]
[1745359917723,8.8465,1750.7,1750.5,1.14214]
[1745359917928,1.14213,1750.6,1750.3,1.14229]
[1745359918130,13.8465,1750.7,1750.0,1.14243]
[1745359918131,1.14226,1750.4,1750.0,1.14243]
[1745359918330,8.4204,1750.3,1750.1,1.14242]
[1745359918532,8.4204,1750.3,1750.2,1.14236]
[1745359918725,5.2126,1750.3,1750.2,1.14236]
[1745359918922,3.2078,1750.5,1750.2,1.14236]
[1745359919148,5.2126,1750.5,1750.3,1.14225]
[1745359919324,5.2126,1750.5,1750.1,5.247]
[1745359919522,5.2126,1750.5,1750.0,0.00857314]
[1745359919523,5.2126,1750.5,1750.3,1.14225]
[1745359919827,5.2126,1750.5,1750.4,1.14223]
[1745359920025,5.2126,1750.5,1750.3,1.14225]
[1745359920228,5.2126,1750.5,1750.0,0.00857314]
[1745359920229,3.2078,1750.4,1750.0,0.00857314]
[1745359920418,3.2078,1750.2,1750.0,1.15102314]
[1745359920623,14.0276,1750.1,1750.0,1.15102314]
[1745359921026,13.815,1750.1,1750.0,0.00857314]
[1745359921434,22.4893,1750.1,1749.6,3.2078]
[1745359921636,3.2078,1749.7,1749.2,2.8575]
[1745359921839,5.4665,1749.6,1749.5,1.14277]
[1745359922532,8.815,1750.1,1749.7,2.85671]
[1745359922734,8.815,1750.1,1750.0,1.14249]
[1745359922938,12.12952504,1750.1,1749.8,1.14262]
[1745359923236,5.4665,1750.0,1749.9,1.14255]
[1745359923731,5.56466091,1750.0,1749.9,1.14255]
[1745359923933,10.5646617,1750.0,1749.4,3.21637314]
[1745359924122,5.4665,1750.0,1749.5,2.85704]
[1745359924324,5.4665,1750.0,1749.9,1.14255]
[1745359925137,10.4665,1750.0,1749.8,1.14258]
[1745359925434,10.4665,1750.0,1749.4,6.07353314]
[1745359925435,5.4665,1750.0,1749.4,3.21637314]
[1745359925737,5.4665,1750.0,1749.8,1.14258]
[1745359926037,8.82357314,1750.1,1750.0,1.14249]
[1745359926226,8.82357314,1750.1,1749.6,8.0796]
[1745359926531,8.82357314,1750.1,1749.7,1.14266]
[1745359926532,3.2078,1749.9,1749.7,1.14266]
[1745359926740,5.2779,1749.8,1749.6,1.14274]
[1745359927233,5.2779,1749.8,1749.4,5.24497314]
[1745359927632,1.14281,1749.5,1749.4,0.00857314]
[1745359927936,12.0228,1749.5,1748.8,6.06595]
[1745359928133,5.1863,1749.4,1749.1,1.14301]
[1745359928329,5.1863,1749.4,1749.3,1.14294]
[1745359929036,5.1863,1749.4,1749.2,0.00857314]
[1745359929335,5.1863,1749.4,1749.3,1.14294]
[1745359929532,5.1863,1749.4,1749.2,0.00857314]
[1745359930040,5.1863,1749.4,1749.3,1.14294]
[1745359930337,5.1863,1749.4,1749.3,5.4923]
[1745359930637,5.1863,1749.4,1749.2,0.00857314]
[1745359930937,0.00857314,1749.5,1749.4,1.14288]
[1745359931139,0.00857314,1749.5,1749.4,17.94368]
[1745359931331,0.00857314,1749.5,1749.4,12.94368]
[1745359931727,0.00857314,1749.5,1749.4,6.322]
[1745359932038,0.00857314,1749.5,1749.4,7.46488]
[1745359932332,3.2078,1750.1,1749.4,16.8143]
[1745359932533,13.8893,1750.3,1749.5,3.2078]
[1745359932737,5.69095217,1750.2,1749.9,1.14249]
[1745359932935,3.2078,1750.1,1749.6,5.4923]
[1745359933130,5.44676101,1750.0,1749.9,1.14255]
[1745359933439,5.3486,1750.0,1749.8,1.1426]
[1745359933738,5.3486,1750.0,1749.6,5.4923]
[1745359933939,5.3486,1750.0,1749.8,1.14258]
[1745359934132,4.35037,1749.9,1749.5,1.14277]
[1745359934332,5.3486,1749.8,1749.5,1.14277]
[1745359934538,5.3486,1749.8,1749.7,1.14268]
[1745359934835,10.44677409,1749.8,1749.2,1.15153314]
[1745359935135,3.2078,1749.5,1749.2,0.00857314]
[1745359935340,5.3486,1749.4,1749.2,1.15155314]
[1745359935539,5.3486,1749.4,1749.2,0.00857314]
[1745359935842,5.3486,1749.4,1748.7,5.2114]
[1745359935843,4.35074,1749.3,1748.7,5.2114]
[1745359936040,5.3486,1749.2,1748.9,1.14317]
[1745359936242,3.2078,1749.0,1748.6,5.268]
[1745359936442,5.3036,1748.9,1748.5,5.6124]
[1745359936634,5.3036,1748.9,1748.8,1.14327]
[1745359936941,5.3036,1748.9,1748.6,1.14335]
[1745359937136,5.3036,1748.9,1748.7,0.00857314]
[1745359937340,6.44683,1748.9,1748.7,0.00857314]
[1745359937541,5.3036,1748.9,1748.7,0.00857314]
[1745359938041,0.09823078,1748.8,1748.7,0.00857314]
[1745359938237,3.30603078,1748.8,1748.4,7.34265898]
[1745359938443,3.2078,1748.6,1748.4,7.34265898]
[1745359938741,14.21883078,1748.5,1748.1,1.14371]
[1745359938936,14.1206,1748.5,1748.2,1.14366]
[1745359939129,14.1206,1748.5,1748.2,1.14364]
[1745359939336,0.0982572,1748.4,1747.9,5.6124]
[1745359939530,5.2826,1748.3,1748.2,1.15219314]
[1745359939937,8.817,1748.5,1748.4,1.14353]
[1745359940143,14.0996,1748.5,1748.3,5.4865]
[1745359940346,14.0996,1748.5,1748.2,0.00857314]
[1745359941038,3.2078,1748.8,1748.3,2.85895]
[1745359941245,5.29117314,1749.0,1748.9,1.14321]
[1745359942940,0.00857314,1749.0,1748.9,1.14321]
[1745359943142,0.00857314,1749.0,1748.9,7.46521]
[1745359944537,0.00857314,1749.0,1748.9,12.46521]
[1745359945440,3.14e-06,1749.0,1748.9,17.83921]
[1745359945637,3.14e-06,1749.0,1748.9,22.92631]
[1745359945839,14.61361,1749.7,1748.9,22.92631]
[1745359945840,3.2078,1749.7,1749.5,1.14281]
[1745359946133,12.0268,1749.7,1749.4,1.14285]
[1745359946339,3.2078,1750.2,1749.2,14.29683]
[1745359946642,8.819,1750.3,1750.2,1.14236]
[1745359947241,0.00857314,1750.4,1750.2,7.46431]
[1745359947436,0.00857314,1750.4,1750.2,6.322]
[1745359947638,0.00857314,1750.4,1750.2,7.46434]
[1745359947842,5.31727314,1750.4,1750.2,7.46434]
[1745359948036,5.31727314,1750.4,1750.3,1.14229]
[1745359948241,5.31727314,1750.4,1750.2,1.14232]
[1745359948545,5.31727314,1750.4,1750.3,1.14229]
[1745359948746,5.31727314,1750.4,1750.2,1.14232]
[1745359949046,0.00857314,1750.4,1750.3,1.14229]
[1745359949242,0.10671064,1750.4,1750.3,1.14229]
[1745359949543,6.24894064,1750.4,1750.1,0.00857314]
[1745359949745,3.3059375,1750.3,1750.1,0.00857314]
[1745359950042,8.8731375,1750.2,1749.6,1.1427]
[1745359950343,3.2078,1749.9,1749.5,1.14276]
[1745359950541,3.2078,1749.7,1749.6,1.14275]
[1745359950747,5.0852,1750.1,1749.6,2.85688]
[1745359950949,5.0852,1750.1,1750.0,1.14249]
[1745359951142,5.18335512,1750.1,1750.0,1.14249]
[1745359951542,0.09815512,1750.1,1750.0,1.14249]
[1745359951951,0.09815512,1750.1,1749.7,6.07304314]
[1745359951952,11.9828,1750.2,1750.1,1.14242]
[1745359952151,17.36554437,1750.2,1750.1,1.14242]
[1745359952845,8.775,1750.2,1750.1,1.14242]
[1745359953046,3.2078,1750.9,1750.6,1.14209]
[1745359953347,3.2078,1750.9,1750.8,1.14196]
[1745359953544,14.0586,1751.2,1750.7,2.85496]
[1745359953754,0.09809707,1751.1,1750.6,2.85524]
[1745359954051,5.2846,1751.0,1750.4,5.0732]
[1745359954243,0.00857314,1751.0,1750.9,1.1419]
[1745359954645,0.00857314,1751.0,1750.8,1.14193]
[1745359954841,0.00857314,1751.0,1750.7,0.00857314]
[1745359955046,3.21637314,1751.0,1750.7,0.00857314]
[1745359955241,3.2078,1750.8,1750.1,1.14238]
[1745359955439,3.2078,1750.6,1749.7,6.06445]
[1745359955643,13.97142412,1750.5,1750.4,1.14223]
[1745359955844,13.8733,1750.5,1750.4,1.14223]
[1745359957450,8.772,1750.5,1750.4,1.14223]
[1745359958143,8.772,1750.5,1750.3,0.00857314]
[1745359958339,8.772,1750.5,1750.4,1.14223]
[1745359958543,0.00857314,1750.6,1750.5,1.14216]
[1745359959053,0.00857314,1750.6,1750.5,6.14216]
[1745359959244,0.00857314,1750.6,1750.5,12.46416]
[1745359959449,8.771,1751.0,1750.9,1.1419]
[1745359960339,3.2078,1751.7,1751.5,1.14148]
[1745359960539,0.09807186,1751.6,1751.1,2.85443]
[1745359960745,0.09807186,1751.6,1751.5,1.14151]
[1745359960945,0.00857314,1751.8,1751.7,1.14138]
[1745359961548,0.00857314,1751.8,1751.7,6.14138]
[1745359961743,3.14e-06,1751.8,1751.7,6.14138]
[1745359962145,3.14e-06,1751.8,1751.7,12.46338]
[1745359963653,3.14e-06,1751.8,1751.7,7.46338]
[1745359963841,3.14e-06,1751.8,1751.7,6.322]
[1745359964158,3.14e-06,1751.8,1751.7,1.14138]
[1745359964552,3.14e-06,1751.8,1751.7,6.14138]
[1745359964749,3.14e-06,1751.8,1751.7,1.14138]
[1745359965357,3.14e-06,1751.8,1751.7,6.14138]
[1745359965849,8.77,1752.6,1752.0,2.8529]
[1745359966045,5.1811,1752.5,1752.4,1.14092]
[1745359966247,8.77,1752.6,1752.5,1.14086]
[1745359966447,8.77,1752.6,1752.0,6.0607]
[1745359966748,5.1508,1752.5,1752.3,4.34874]
[1745359966954,5.15937314,1752.5,1752.2,1.14102]
[1745359967154,5.15937314,1752.5,1752.4,1.14092]
[1745359967451,5.15937314,1752.5,1752.1,0.00857314]
[1745359967658,5.15937314,1752.5,1752.4,1.14092]
[1745359968155,1.14104,1752.3,1752.1,0.00857314]
[1745359968359,5.1508,1752.2,1752.1,0.00857314]
[1745359968748,5.1508,1752.2,1752.1,1.14969314]
[1745359969145,5.1508,1752.2,1752.1,0.00857314]
[1745359969357,5.1508,1752.2,1752.1,1.14969314]
[1745359969857,5.09647314,1752.5,1752.4,1.14092]
[1745359970159,10.20597314,1752.5,1752.4,1.14092]
[1745359970454,5.11807314,1752.5,1752.4,1.14092]
[1745359970757,8.42388712,1752.5,1752.3,1.14095]
[1745359970949,8.32587314,1752.5,1752.3,1.14095]
[1745359971150,8.32587314,1752.5,1752.3,1.15435]
[1745359971549,8.32587314,1752.5,1752.3,1.15438]
[1745359972158,5.11807314,1752.5,1752.4,1.14092]
[1745359972563,10.11807314,1752.5,1752.3,0.0134]
[1745359972754,8.32587314,1752.5,1752.3,1.15435]
[1745359972949,5.11807314,1752.5,1752.4,1.14092]
[1745359973158,0.00857314,1752.5,1752.4,1.14092]
[1745359973457,0.00857314,1752.5,1752.4,6.39692]
[1745359973850,0.00857314,1752.5,1752.3,0.0134]
[1745359974162,5.50277314,1752.5,1752.3,0.0134]
[1745359974356,5.50277314,1752.5,1752.3,1.15438]
[1745359974659,5.50277314,1752.5,1752.3,1.15433]
[1745359975258,1.14092,1752.4,1752.3,0.0134]
[1745359975452,8.71057314,1752.5,1752.3,0.0134]
[1745359975756,6.64392,1752.4,1752.3,0.0134]
[1745359976660,5.6010203,1752.4,1752.3,0.0134]
[1745359976854,6.64392,1752.4,1752.3,0.0134]
[1745359977060,5.503,1752.4,1752.3,0.0134]
[1745359977562,6.64392,1752.4,1752.3,0.0134]
[1745359977761,5.503,1752.4,1752.3,1.15439]
[1745359977953,5.503,1752.4,1752.3,0.0134]
[1745359978153,6.64392,1752.4,1752.3,0.0134]
[1745359978449,5.503,1752.4,1752.3,0.0134]
[1745359978859,6.64392,1752.4,1752.3,0.0134]
[1745359979563,5.503,1752.4,1752.3,0.0134]
[1745359979962,6.64392,1752.4,1752.3,0.0134]
[1745359980158,5.503,1752.4,1752.3,0.0134]
[1745359980363,10.60101996,1752.4,1751.5,3.2078]
[1745359980661,5.503,1752.4,1752.2,1.14102]
[1745359980854,5.503,1752.4,1752.3,1.14099]
[1745359981256,0.00857314,1752.5,1752.4,1.14092]
[1745359981657,0.00857314,1752.5,1752.4,6.67412]
[1745359982357,0.00857314,1752.5,1752.4,1.14092]
[1745359982557,5.53217314,1752.5,1752.4,5.5332]
[1745359982865,3.2078,1752.7,1752.4,6.14092]
[1745359983058,8.2646,1753.6,1752.8,2.85166]
[1745359983365,14.9284,1753.6,1753.3,1.1403]
[1745359983560,6.32898,1753.9,1753.2,6.05881]
[1745359983756,5.5236,1753.8,1753.7,1.14008]
[1745359983957,1.13986,1754.1,1753.8,1.13999]
[1745359984160,1.13986,1754.1,1753.4,6.0584]
[1745359984161,0.00857314,1753.9,1753.6,0.00857314]
[1745359984462,0.00857314,1753.9,1753.8,1.14001]
[1745359985054,0.00857314,1753.9,1753.8,4.34781]
[1745359985556,3.2078,1754.7,1754.6,1.13949]
[1745359985758,1.13935,1754.9,1754.5,1.13953]
[1745359985959,1.13935,1754.9,1754.5,1.13956]
[1745359986154,3.2078,1755.1,1754.4,5.2446]
[1745359986359,1.13913,1755.2,1754.5,3.2078]
[1745359986657,8.741,1755.3,1754.9,3.2078]
[1745359986865,2.85658867,1755.0,1754.0,3.2078]
[1745359987165,1.13959,1754.5,1754.0,5.2446]
[1745359987360,5.5332,1754.4,1754.2,1.13972]
[1745359987556,5.5332,1754.4,1754.0,3.2078]
[1745359987762,8.714,1754.7,1754.2,3.2078]
[1745359987957,8.714,1754.7,1754.3,5.2467]
[1745359988157,5.488,1754.6,1754.3,5.25524823]
[1745359988358,5.488,1754.6,1754.3,6.39490823]
[1745359988560,5.488,1754.6,1754.5,1.13956]
[1745359989563,5.488,1754.6,1754.5,6.38626]
[1745359989765,5.488,1754.6,1754.3,1.14818823]
[1745359989968,5.488,1754.6,1754.3,0.00854823]
[1745359990263,1.13962,1754.4,1754.3,0.00854823]
[1745359990471,3.2078,1754.5,1754.3,0.00854823]
[1745359990666,2.84922,1754.3,1753.4,3.2078]
[1745359990964,1.1401,1753.7,1753.4,5.3124]
[1745359991271,5.3494,1753.6,1753.5,1.14021]
[1745359991563,5.3494,1753.6,1753.4,4.34804]
[1745359991772,5.3494,1753.6,1753.4,0.00854823]
[1745359992067,11.6714,1753.6,1753.5,1.14021]
[1745359992875,3.47013354,1753.6,1753.5,6.14021]
[1745359993068,0.00854823,1753.7,1753.6,1.14014]
[1745359993571,0.00854823,1753.7,1753.4,1.14877823]
[1745359993764,0.00854823,1753.7,1753.4,0.00854823]
[1745359993965,0.00854823,1753.7,1753.6,1.14014]
[1745359994182,1.14865823,1753.7,1753.4,0.00854823]
[1745359994370,5.2117,1753.6,1753.4,1.14879823]
[1745359994557,5.2117,1753.6,1753.4,0.00854823]
[1745359994762,3.2078,1753.5,1753.4,0.00854823]
[1745359995164,11.322,1753.5,1753.4,0.00854823]
[1745359995370,6.322,1753.5,1753.4,1.14881823]
[1745359995666,6.322,1753.5,1753.4,0.00854823]
[1745359995870,10.67001,1753.5,1753.4,0.00854823]
[1745359996468,15.67001,1753.5,1753.4,0.00854823]
[1745359996868,1.14033,1753.4,1752.9,1.14057]
[1745359997068,13.05714,1753.3,1752.9,1.14057]
[1745359997271,5.6013,1753.2,1752.9,1.14055]
[1745359997571,5.6013,1753.2,1753.0,1.14052]
[1745359997964,8.709,1753.3,1753.1,1.14042]
[1745359998167,8.709,1753.3,1753.1,5.2018]
[1745359998367,3.21634823,1753.7,1753.1,8.05296]
[1745359998675,0.00854823,1753.7,1753.6,4.34794]
[1745359999064,11.9178,1754.3,1753.6,8.2078]
[1745359999269,1.1399,1754.0,1753.7,1.14007]
[1745359999569,4.34765,1754.1,1753.8,1.14]
[1745359999760,3.2078,1754.1,1753.7,3.2078]
[1745360000074,3.21634823,1754.1,1753.7,0.00854823]
[1745360000274,1.13998,1753.9,1753.7,0.00854823]
[1745360000474,3.21634823,1754.1,1753.7,0.00854823]
[1745360000871,4.34775,1753.9,1753.7,0.00854823]
[1745360001175,1.14001,1753.8,1753.7,0.00854823]
[1745360001369,4.34779,1753.9,1753.7,0.00854823]
[1745360001871,1.14001,1753.8,1753.7,0.00854823]
[1745360002066,3.2078,1753.9,1753.7,0.00854823]
[1745360002268,1.14001,1753.8,1753.7,0.00854823]
[1745360002765,6.14001,1753.8,1753.7,0.00854823]
[1745360003074,3.2078,1753.9,1753.7,0.00854823]
[1745360003370,9.5298,1753.9,1753.7,0.00854823]
[1745360003570,9.5298,1753.9,1753.8,1.14001]
[1745360003875,6.322,1753.9,1753.8,6.55561]
[1745360004062,6.322,1753.9,1753.8,5.4156]
[1745360004271,6.322,1753.9,1753.7,0.00854823]
[1745360004272,4.3477,1754.0,1753.7,0.00854823]
[1745360004467,1.13999,1753.9,1753.7,0.00854823]
[1745360004767,1.14001,1753.8,1753.7,0.00854823]
[1745360004961,4.34781,1753.8,1753.7,0.00854823]
[1745360005176,10.66981,1753.8,1753.7,0.00854823]
[1745360005572,10.76775018,1753.8,1753.7,0.00854823]
[1745360005773,85.03774018,1753.8,1752.8,3.2078]
[1745360006073,3.2078,1753.0,1752.6,5.5856]
[1745360006273,1.14069,1752.8,1752.3,1.14096]
[1745360006469,8.71,1752.9,1752.3,5.5856]
[1745360006665,8.71,1752.9,1752.6,3.2078]
[1745360006873,3.21634823,1752.8,1752.4,1.14944823]
[1745360007065,3.21634823,1752.8,1752.4,3.21634823]
[1745360007273,4.34862,1752.6,1752.4,0.00854823]
[1745360007480,3.21634823,1752.8,1752.4,0.00854823]
[1745360007772,3.21634823,1752.8,1752.4,3.21634823]
[1745360007977,0.00854823,1752.8,1752.5,5.5856]
[1745360008274,0.00854823,1752.8,1752.6,1.14076]
[1745360008476,0.00854823,1752.8,1752.7,1.14073]
[1745360008677,0.00854823,1752.8,1752.5,5.5856]
[1745360008876,0.00854823,1752.8,1752.4,0.00854823]
[1745360009069,0.00854823,1752.8,1752.4,1.14944823]
[1745360009070,1.14924823,1752.8,1752.4,1.14944823]
[1745360009271,6.33054823,1752.8,1752.4,0.00854823]
[1745360009481,6.33054823,1752.8,1752.6,1.14075]
[1745360009978,6.33054823,1752.8,1752.6,1.14076]
[1745360010281,0.00854823,1752.8,1752.6,1.14076]
[1745360010579,0.00854823,1752.8,1752.7,1.14073]
[1745360010774,0.00854823,1752.8,1752.7,6.33583]
[1745360012173,8.02417,1753.5,1752.7,6.33583]
[1745360012174,3.2078,1753.4,1753.2,1.14035]
[1745360012379,9.80725,1753.5,1752.9,11.58616]
[1745360012577,9.80725,1753.5,1753.3,1.1403]
[1745360012778,1.14027,1753.4,1753.2,1.14037]
[1745360013076,1.1403,1753.4,1753.2,1.1404]
[1745360013271,8.667,1753.5,1752.9,4.8513]
[1745360013479,1.14043,1753.2,1753.0,1.14049]
[1745360013673,1.14043,1753.2,1753.0,1.14053]
[1745360014379,9.81579823,1753.5,1753.2,1.14038]
[1745360014881,9.81579823,1753.5,1753.3,5.5269]
[1745360015474,9.81579823,1753.5,1753.3,6.66723]
[1745360015675,8.67554823,1753.5,1753.3,6.66723]
[1745360015981,8.67554823,1753.5,1753.3,5.5269]
[1745360016368,0.00854823,1753.5,1753.4,1.14027]
[1745360016567,0.00854823,1753.5,1753.3,5.5269]
[1745360016772,0.00854823,1753.5,1753.4,1.14027]
[1745360017179,0.00854823,1753.5,1753.4,9.34807]
[1745360017385,0.00854823,1753.5,1753.4,14.64747]
[1745360017577,0.00854823,1753.5,1753.4,9.64747]
[1745360018084,1.14881823,1753.5,1753.2,3.2078]
[1745360018374,8.666,1753.4,1753.0,5.2749]
[1745360018575,13.01412,1753.4,1753.0,6.41541]
[1745360018773,6.55995,1753.3,1753.0,6.41541]